fUSD/lending_fUSD_20250107
["ID","MTS","AMOUNT","RATE_DAILY","PERIOD"]
[348073877,1736293846228,-500.0,0.00010097,2]
[348073878,1736293846238,-500.0,0.00010097,2]
[348073879,1736293846248,-500.0,0.00010097,2]
[348073880,1736293846257,-1241.15,0.00010097,2]
[348073881,1736293846267,-500.0,0.00010097,2]
[348073882,1736293846276,-699.51,0.00010097,2]
[348073883,1736293846285,-533.39,0.00010097,2]
[348073884,1736293846294,-500.0,0.00010097,2]
[348073885,1736293846304,-500.0,0.00010097,2]
[348073886,1736293846313,-500.0,0.00010097,2]
[348073887,1736293846322,-500.0,0.00010097,2]
[348073888,1736293846332,-670.07,0.00010097,2]
[348073889,1736293846341,-1516.01,0.00010097,2]
[348073890,1736293846350,-500.0,0.00010097,2]
[348073891,1736293846358,-500.0,0.00010097,2]
[348073892,1736293846365,-500.0,0.00010097,2]
[348073893,1736293846373,-500.0,0.00010097,2]
[348073894,1736293846381,-1569.01,0.00010097,2]
[348073895,1736293846390,-503.82,0.00010097,2]
[348073896,1736293846398,-500.0,0.00010097,2]
[348073897,1736293846409,-500.0,0.00010097,2]
[348073898,1736293846416,-1908.97,0.00010097,2]
[348073899,1736293846423,-500.0,0.00010097,2]
[348073900,1736293846431,-500.0,0.00010097,2]
[348073901,1736293846440,-500.0,0.00010097,2]
[348073902,1736293846450,-1052.81,0.00010097,2]
[348073903,1736293846458,-2068.03,0.00010097,2]
[348073904,1736293846466,-662.64,0.00010097,2]
[348073905,1736293846476,-500.0,0.00010097,2]
[348073906,1736293846485,-500.0,0.00010097,2]
[348073907,1736293846493,-1860.77,0.00010097,2]
[348073908,1736293846503,-500.0,0.00010097,2]
[348073909,1736293846513,-936.69,0.00010097,2]
[348073910,1736293846523,-500.0,0.00010097,2]
[348073911,1736293846533,-500.0,0.00010097,2]
[348073912,1736293846543,-500.0,0.00010097,2]
[348073913,1736293846552,-500.0,0.00010097,2]
[348073914,1736293846563,-316.84973515,0.00010097,2]
[348073915,1736293846573,-500.0,0.00010097,2]
[348073916,1736293846583,-2152.19,0.00010097,2]
[348073917,1736293846593,-500.0,0.00010097,2]
[348073918,1736293846602,-1369.51,0.00010097,2]
[348073919,1736293846612,-500.0,0.00010097,2]
[348073920,1736293846621,-500.0,0.00010097,2]
[348073921,1736293846630,-500.0,0.00010097,2]
[348073922,1736293846640,-500.0,0.00010097,2]
[348073923,1736293846650,-829.55,0.00010097,2]
[348073924,1736293846660,-789.34,0.00010097,2]
[348073925,1736293846670,-500.0,0.00010097,2]
[348073926,1736293846680,-813.16,0.00010097,2]
[348073927,1736293846690,-500.0,0.00010097,2]
[348073928,1736293846699,-500.0,0.00010097,2]
[348073929,1736293846708,-500.0,0.00010097,2]
[348073930,1736293846718,-500.0,0.00010097,2]
[348073931,1736293846727,-687.51,0.00010097,2]
[348073932,1736293846737,-500.0,0.00010097,2]
[348073933,1736293846746,-500.0,0.00010098,2]
[348073934,1736293846756,-500.0,0.00010098,2]
[348073935,1736293846766,-642.04,0.00010098,2]
[348073936,1736293846775,-500.0,0.00010098,2]
[348073937,1736293846785,-500.0,0.00010098,2]
[348073938,1736293846795,-500.0,0.00010098,2]
[348073939,1736293846804,-500.0,0.00010098,2]
[348073940,1736293846820,-500.0,0.00010098,2]
[348073941,1736293846835,-500.0,0.00010098,2]
[348073942,1736293846847,-500.0,0.00010098,2]
[348073943,1736293846857,-500.0,0.00010098,2]
[348073944,1736293846867,-500.0,0.00010098,2]
[348073945,1736293846877,-500.0,0.00010098,2]
[348073946,1736293846887,-644.13,0.00010098,2]
[348073947,1736293846897,-500.0,0.00010098,2]
[348073948,1736293846909,-899.98,0.00010098,2]
[348073949,1736293846919,-648.46,0.00010098,2]
[348073950,1736293846929,-500.0,0.00010098,2]
[348073951,1736293846939,-838.45,0.00010098,2]
[348073952,1736293846950,-609.48,0.00010098,2]
[348073953,1736293846960,-500.0,0.00010098,2]
[348073954,1736293846970,-1514.33,0.00010098,2]
[348073955,1736293846980,-515.09,0.00010098,2]
[348073956,1736293846990,-500.0,0.00010098,2]
[348073957,1736293847000,-500.0,0.00010098,2]
[348073958,1736293847009,-500.0,0.00010098,2]
[348073959,1736293847019,-3662.18,0.00010098,2]
[348073960,1736293847029,-500.0,0.00010098,2]
[348073961,1736293847040,-500.0,0.00010098,2]
[348073962,1736293847050,-500.0,0.00010098,2]
[348073963,1736293847060,-315.99056082,0.00010098,2]
[348073964,1736293847069,-500.0,0.00010098,2]
[348073965,1736293847079,-500.0,0.00010098,2]
[348073966,1736293847089,-500.0,0.00010098,2]
[348073967,1736293847099,-500.0,0.00010098,2]
[348073968,1736293847109,-500.0,0.00010098,2]
[348073969,1736293847119,-500.0,0.00010098,2]
[348073970,1736293847128,-500.0,0.00010098,2]
[348073971,1736293847138,-500.0,0.00010098,2]
[348073972,1736293847149,-500.0,0.00010098,2]
[348073973,1736293847159,-724.25,0.00010098,2]
[348073974,1736293847168,-500.0,0.00010098,2]
[348073975,1736293847179,-610.86,0.00010098,2]
[348073976,1736293847188,-671.25,0.00010098,2]
[348073977,1736293847198,-735.0,0.00010098,2]
[348073978,1736293847208,-500.0,0.00010098,2]
[348073979,1736293847218,-500.0,0.00010098,2]
[348073980,1736293847228,-500.0,0.00010098,2]
[348073981,1736293847238,-500.0,0.00010098,2]
[348073982,1736293847248,-690.58,0.00010098,2]
[348073983,1736293847257,-500.0,0.00010098,2]
[348073984,1736293847267,-500.0,0.00010098,2]
[348073985,1736293847276,-500.0,0.00010098,2]
[348073986,1736293847285,-530.3,0.00010098,2]
[348073987,1736293847294,-500.0,0.00010098,2]
[348073988,1736293847303,-597.1,0.00010098,2]
[348073989,1736293847313,-500.0,0.00010098,2]
[348073990,1736293847322,-225.74067365,0.00010098,2]
[348073991,1736293847331,-500.0,0.00010098,2]
[348073992,1736293847340,-500.0,0.00010098,2]
[348073993,1736293847349,-1181.84,0.00010098,2]
[348073994,1736293847359,-500.0,0.00010098,2]
[348073995,1736293847368,-500.0,0.00010098,2]
[348073996,1736293847377,-1750.83,0.00010098,2]
[348073997,1736293847386,-500.0,0.00010098,2]
[348073998,1736293847396,-823.79,0.00010098,2]
[348073999,1736293847408,-500.0,0.00010098,2]
[348074000,1736293847417,-500.0,0.00010098,2]
[348074001,1736293847426,-500.0,0.00010098,2]
[348074002,1736293847435,-500.0,0.00010098,2]
[348074003,1736293847446,-1984.69,0.00010098,2]
[348074004,1736293847455,-708.58,0.00010098,2]
[348074005,1736293847465,-500.0,0.00010098,2]
[348074006,1736293847475,-500.0,0.00010098,2]
[348074007,1736293847484,-500.0,0.00010098,2]
[348074008,1736293847494,-1402.78,0.00010098,2]
[348074009,1736293847503,-914.79,0.00010098,2]
[348074010,1736293847512,-500.0,0.00010098,2]
[348074011,1736293847521,-500.0,0.00010098,2]
[348074012,1736293847530,-500.0,0.00010098,2]
[348074013,1736293847540,-500.0,0.00010098,2]
[348074014,1736293847549,-719.13,0.00010098,2]
[348074015,1736293847559,-500.0,0.00010098,2]
[348074016,1736293847568,-500.0,0.00010098,2]
[348074017,1736293847577,-500.0,0.00010098,2]
[348074018,1736293847586,-500.0,0.00010098,2]
[348074019,1736293847595,-690.01,0.00010098,2]
[348074020,1736293847604,-500.0,0.00010098,2]
[348074021,1736293847614,-500.0,0.00010098,2]
[348074022,1736293847623,-1186.64,0.00010098,2]
[348074023,1736293847632,-500.0,0.00010098,2]
[348074024,1736293847641,-462.65845394,0.00010098,2]
[348074025,1736293847650,-1812.3,0.00010098,2]
[348074026,1736293847663,-500.0,0.00010098,2]
[348074027,1736293847673,-500.0,0.00010098,2]
[348074028,1736293847683,-500.0,0.00010098,2]
[348074029,1736293847692,-795.99,0.00010098,2]
[348074030,1736293847702,-1000.0,0.00010098,2]
[348074031,1736293847711,-500.0,0.00010098,2]
[348074032,1736293847720,-799.53,0.00010098,2]
[348074033,1736293847729,-566.68,0.00010098,2]
[348074034,1736293847738,-500.0,0.00010098,2]
[348074035,1736293847747,-500.0,0.00010098,2]
[348074036,1736293847757,-500.0,0.00010098,2]
[348074037,1736293847766,-500.0,0.00010098,2]
[348074038,1736293847775,-500.0,0.00010098,2]
[348074039,1736293847784,-1618.63,0.00010098,2]
[348074040,1736293847793,-500.0,0.00010098,2]
[348074041,1736293847803,-207.74170204,0.00010109,2]
[348074042,1736293847812,-350.59,0.00010137,2]
[348074043,1736293847822,-179.10452172,0.00010169,2]
[348074044,1736293847831,-500.0,0.00010173,2]
[348074045,1736293847840,-500.0,0.00010173,2]
[348074046,1736293847849,-500.0,0.00010173,2]
[348074047,1736293847859,-216.50855772,0.00010173,2]
[348074048,1736293847868,-500.0,0.00010173,2]
[348074049,1736293847878,-500.0,0.00010173,2]
[348074050,1736293847887,-500.0,0.00010173,2]
[348074051,1736293847897,-1216.46,0.00010173,2]
[348074052,1736293847907,-3804.32,0.00010173,2]
[348074053,1736293847917,-500.0,0.00010173,2]
[348074054,1736293847927,-500.0,0.00010173,2]
[348074055,1736293847938,-500.0,0.00010173,2]
[348074056,1736293847947,-745.41,0.00010173,2]
[348074057,1736293847957,-689.56,0.00010173,2]
[348074058,1736293847968,-1125.14,0.00010173,2]
[348074059,1736293847977,-500.0,0.00010173,2]
[348074060,1736293847988,-500.0,0.00010173,2]
[348074061,1736293847998,-2044.25,0.00010173,2]
[348074062,1736293848008,-500.0,0.00010173,2]
[348074063,1736293848018,-879.84,0.00010173,2]
[348074064,1736293848028,-648.33,0.00010173,2]
[348074065,1736293848038,-1209.31,0.00010173,2]
[348074066,1736293848047,-883.01,0.00010173,2]
[348074067,1736293848056,-500.0,0.00010173,2]
[348074068,1736293848065,-501.45,0.00010174,2]
[348074069,1736293848074,-824.81,0.00010174,2]
[348074070,1736293848084,-1519.87,0.00010174,2]
[348074071,1736293848093,-255.0,0.00010176,2]
[348074072,1736293848102,-500.0,0.00010232,2]
[348074073,1736293848111,-500.0,0.00010258,2]
[348074074,1736293848121,-500.0,0.00010258,2]
[348074075,1736293848130,-673.69,0.00010258,2]
[348074076,1736293848140,-779.03,0.00010258,2]
[348074077,1736293848149,-1551.77,0.00010258,2]
[348074078,1736293848158,-1088.09,0.00010258,2]
[348074079,1736293848167,-620.746265,0.00010258,2]
[348074080,1736293848176,-2000.4,0.00010258,2]
[348074081,1736293848186,-597.759592,0.00010258,2]
[348074082,1736293848195,-500.0,0.00010258,2]
[348074083,1736293848204,-500.0,0.00010258,2]
[348074084,1736293848214,-500.0,0.00010258,2]
[348074085,1736293848223,-1484.85,0.00010258,2]
[348074086,1736293848233,-550.3,0.00010275,2]
[348074087,1736293848242,-1358.3,0.00010276,2]
[348074088,1736293848252,-3054.42136904,0.00010283,2]
[348074089,1736293848261,-179.10452172,0.00010293,2]
[348074090,1736293848270,-207.74170204,0.00010318,2]
[348074091,1736293848279,-2014.0,0.00010349,2]
[348074092,1736293848289,-1267.0,0.00010349,2]
[348074093,1736293848299,-566.0,0.00010349,2]
[348074094,1736293848309,-150.0,0.00010349,2]
[348074095,1736293848318,-634.0,0.00010349,2]
[348074096,1736293848328,-1860.0,0.00010349,2]
[348074097,1736293848337,-819.0,0.00010349,2]
[348074098,1736293848347,-3776.0,0.00010349,2]
[348074099,1736293848357,-916.0,0.00010349,2]
[348074100,1736293848367,-1258.0,0.00010349,2]
[348074101,1736293848377,-537.0,0.00010349,2]
[348074102,1736293848387,-3976.0,0.00010349,2]
[348074103,1736293848397,-9619.0,0.00010349,2]
[348074104,1736293848411,-3894.0,0.00010349,2]
[348074105,1736293848421,-150.0,0.00010349,2]
[348074106,1736293848433,-1173.0,0.00010349,2]
[348074107,1736293848444,-150.0,0.00010349,2]
[348074108,1736293848455,-500.0,0.00010371,2]
[348074109,1736293848466,-500.0,0.00010371,2]
[348074110,1736293848476,-500.0,0.00010371,2]
[348074111,1736293848700,-500.0,0.00010371,2]
[348074112,1736293848710,-500.0,0.00010371,2]
[348074113,1736293848720,-500.0,0.00010371,2]
[348074114,1736293848731,-500.0,0.00010371,2]
[348074115,1736293848741,-500.0,0.00010371,2]
[348074116,1736293848751,-500.0,0.00010371,2]
[348074117,1736293848760,-500.0,0.00010371,2]
[348074118,1736293848770,-500.0,0.00010371,2]
[348074119,1736293848780,-500.0,0.00010371,2]
[348074120,1736293848790,-500.0,0.00010371,2]
[348074121,1736293848799,-500.0,0.00010371,2]
[348074122,1736293848809,-500.0,0.00010371,2]
[348074123,1736293848820,-500.0,0.00010371,2]
[348074124,1736293848830,-200.55,0.00010371,2]
[348074125,1736293848843,-500.0,0.00010371,2]
[348074126,1736293848853,-500.0,0.00010371,2]
[348074127,1736293848863,-500.0,0.00010371,2]
[348074128,1736293848873,-500.0,0.00010371,2]
[348074129,1736293848883,-1049.77,0.00010371,2]
[348074130,1736293848893,-500.0,0.00010371,2]
[348074131,1736293848903,-500.0,0.00010371,2]
[348074132,1736293848913,-500.0,0.00010371,2]
[348074133,1736293848923,-500.0,0.00010371,2]
[348074134,1736293849121,-556.10244111,0.00010371,2]
[348074135,1736293849131,-500.0,0.00010371,2]
[348074136,1736293849141,-500.0,0.00010371,2]
[348074137,1736293849150,-500.0,0.00010371,2]
[348074138,1736293849160,-500.0,0.00010371,2]
[348074139,1736293849170,-500.0,0.00010371,2]
[348074140,1736293849180,-500.0,0.00010371,2]
[348074141,1736293849189,-500.0,0.00010371,2]
[348074142,1736293849199,-500.0,0.00010371,2]
[348074143,1736293849208,-614.3,0.00010371,2]
[348074144,1736293849217,-500.0,0.00010371,2]
[348074145,1736293849227,-500.0,0.00010371,2]
[348074146,1736293849236,-753.89,0.00010371,2]
[348074147,1736293849245,-582.41,0.00010371,2]
[348074148,1736293849255,-500.0,0.00010371,2]
[348074149,1736293849265,-500.0,0.00010371,2]
[348074150,1736293849274,-500.0,0.00010371,2]
[348074151,1736293849284,-500.0,0.00010371,2]
[348074152,1736293849293,-500.0,0.00010371,2]
[348074153,1736293849303,-500.0,0.00010371,2]
[348074154,1736293849313,-769.84,0.00010371,2]
[348074155,1736293849323,-500.0,0.00010371,2]
[348074156,1736293849332,-500.0,0.00010371,2]
[348074157,1736293849341,-500.0,0.00010371,2]
[348074158,1736293849351,-1241.15,0.00010371,2]
[348074159,1736293849361,-500.0,0.00010371,2]
[348074160,1736293849370,-699.51,0.00010371,2]
[348074161,1736293849380,-533.39,0.00010371,2]
[348074162,1736293849389,-500.0,0.00010371,2]
[348074163,1736293849401,-500.0,0.00010371,2]
[348074164,1736293849411,-500.0,0.00010371,2]
[348074165,1736293849421,-500.0,0.00010371,2]
[348074166,1736293849430,-670.07,0.00010371,2]
[348074167,1736293849439,-1516.01,0.00010371,2]
[348074168,1736293849450,-500.0,0.00010371,2]
[348074169,1736293849460,-500.0,0.00010371,2]
[348074170,1736293849470,-500.0,0.00010371,2]
[348074171,1736293849480,-500.0,0.00010371,2]
[348074172,1736293849491,-1569.01,0.00010371,2]
[348074173,1736293849504,-503.82,0.00010371,2]
[348074174,1736293849513,-500.0,0.00010371,2]
[348074175,1736293849522,-562.63,0.00010371,2]
[348074176,1736293849531,-500.0,0.00010371,2]
[348074177,1736293849541,-1908.97,0.00010371,2]
[348074178,1736293849550,-500.0,0.00010371,2]
[348074179,1736293849559,-500.0,0.00010371,2]
[348074180,1736293849569,-1052.81,0.00010371,2]
[348074181,1736293849579,-2068.03,0.00010371,2]
[348074182,1736293849588,-662.64,0.00010371,2]
[348074183,1736293849597,-500.0,0.00010371,2]
[348074184,1736293849607,-500.0,0.00010371,2]
[348074185,1736293849616,-1860.77,0.00010371,2]
[348074186,1736293849626,-500.0,0.00010371,2]
[348074187,1736293849636,-500.0,0.00010371,2]
[348074188,1736293849645,-936.69,0.00010371,2]
[348074189,1736293849655,-500.0,0.00010371,2]
[348074190,1736293849664,-500.0,0.00010371,2]
[348074191,1736293849674,-500.0,0.00010371,2]
[348074192,1736293849683,-500.0,0.00010371,2]
[348074193,1736293849692,-2152.19,0.00010371,2]
[348074194,1736293849701,-500.0,0.00010371,2]
[348074195,1736293849711,-474.45628754,0.00010371,2]
[348074196,1736293849720,-1369.51,0.00010371,2]
[348074197,1736293849729,-500.0,0.00010371,2]
[348074198,1736293849739,-500.0,0.00010371,2]
[348074199,1736293849748,-500.0,0.00010371,2]
[348074200,1736293849758,-829.55,0.00010371,2]
[348074201,1736293849768,-789.34,0.00010371,2]
[348074202,1736293849777,-500.0,0.00010371,2]
[348074203,1736293849786,-813.16,0.00010371,2]
[348074204,1736293849796,-500.0,0.00010371,2]
[348074205,1736293849806,-500.0,0.00010371,2]
[348074206,1736293849816,-500.0,0.00010371,2]
[348074207,1736293849825,-500.0,0.00010371,2]
[348074208,1736293849835,-687.51,0.00010371,2]
[348074209,1736293849844,-500.0,0.00010371,2]
[348074210,1736293849854,-500.0,0.00010372,2]
[348074211,1736293849863,-500.0,0.00010372,2]
[348074212,1736293849874,-642.04,0.00010372,2]
[348074213,1736293849883,-500.0,0.00010372,2]
[348074214,1736293849893,-500.0,0.00010372,2]
[348074215,1736293849902,-500.0,0.00010372,2]
[348074216,1736293849912,-500.0,0.00010372,2]
[348074217,1736293849921,-500.0,0.00010372,2]
[348074218,1736293849930,-201.86302397,0.00010372,2]
[348074219,1736293849939,-500.0,0.00010372,2]
[348074220,1736293849948,-240.02657811,0.00010372,2]
[348074221,1736293849957,-500.0,0.00010372,2]
[348074222,1736293849966,-500.0,0.00010372,2]
[348074223,1736293849975,-644.13,0.00010372,2]
[348074224,1736293849984,-500.0,0.00010372,2]
[348074225,1736293849993,-899.98,0.00010372,2]
[348074226,1736293850001,-648.46,0.00010372,2]
[348074227,1736293850009,-331.49275868,0.00010372,2]
[348074228,1736293850018,-838.45,0.00010372,2]
[348074229,1736293850027,-609.48,0.00010372,2]
[348074230,1736293850037,-500.0,0.00010372,2]
[348074231,1736293850046,-1514.33,0.00010372,2]
[348074232,1736293850055,-515.09,0.00010372,2]
[348074233,1736293850063,-500.0,0.00010372,2]
[348074234,1736293850072,-500.0,0.00010372,2]
[348074235,1736293850081,-500.0,0.00010372,2]
[348074236,1736293850090,-3662.18,0.00010372,2]
[348074237,1736293850099,-500.0,0.00010372,2]
[348074238,1736293850108,-500.0,0.00010372,2]
[348074239,1736293850117,-500.0,0.00010372,2]
[348074240,1736293850127,-500.0,0.00010372,2]
[348074241,1736293850136,-500.0,0.00010372,2]
[348074242,1736293850145,-500.0,0.00010372,2]
[348074243,1736293850155,-500.0,0.00010372,2]
[348074244,1736293850164,-500.0,0.00010372,2]
[348074245,1736293850173,-500.0,0.00010372,2]
[348074246,1736293850183,-500.0,0.00010372,2]
[348074247,1736293850192,-500.0,0.00010372,2]
[348074248,1736293850201,-500.0,0.00010372,2]
[348074249,1736293850210,-500.0,0.00010372,2]
[348074250,1736293850220,-724.25,0.00010372,2]
[348074251,1736293850229,-610.86,0.00010372,2]
[348074252,1736293850239,-671.25,0.00010372,2]
[348074253,1736293850248,-735.0,0.00010372,2]
[348074254,1736293850258,-500.0,0.00010372,2]
[348074255,1736293850267,-500.0,0.00010372,2]
[348074256,1736293850277,-500.0,0.00010372,2]
[348074257,1736293850286,-500.0,0.00010372,2]
[348074258,1736293850295,-690.58,0.00010372,2]
[348074259,1736293850305,-500.0,0.00010372,2]
[348074260,1736293850314,-500.0,0.00010372,2]
[348074261,1736293850323,-500.0,0.00010372,2]
[348074262,1736293850332,-530.3,0.00010372,2]
[348074263,1736293850341,-500.0,0.00010372,2]
[348074264,1736293850351,-597.1,0.00010372,2]
[348074265,1736293850361,-500.0,0.00010372,2]
[348074266,1736293850370,-500.0,0.00010372,2]
[348074267,1736293850380,-500.0,0.00010372,2]
[348074268,1736293850390,-1181.84,0.00010372,2]
[348074269,1736293850400,-500.0,0.00010372,2]
[348074270,1736293850417,-500.0,0.00010372,2]
[348074271,1736293850427,-1750.83,0.00010372,2]
[348074272,1736293850438,-500.0,0.00010372,2]
[348074273,1736293850449,-823.79,0.00010372,2]
[348074274,1736293850459,-500.0,0.00010372,2]
[348074275,1736293850469,-500.0,0.00010372,2]
[348074276,1736293850481,-500.0,0.00010372,2]
[348074277,1736293850491,-500.0,0.00010372,2]
[348074278,1736293850500,-1984.69,0.00010372,2]
[348074279,1736293850510,-708.58,0.00010372,2]
[348074280,1736293850519,-500.0,0.00010372,2]
[348074281,1736293850529,-500.0,0.00010372,2]
[348074282,1736293850538,-500.0,0.00010372,2]
[348074283,1736293850547,-1402.78,0.00010372,2]
[348074284,1736293850556,-914.79,0.00010372,2]
[348074285,1736293850567,-500.0,0.00010372,2]
[348074286,1736293850576,-500.0,0.00010372,2]
[348074287,1736293850585,-500.0,0.00010372,2]
[348074288,1736293850595,-719.13,0.00010372,2]
[348074289,1736293850604,-584.95,0.00010372,2]
[348074290,1736293850622,-500.0,0.00010372,2]
[348074291,1736293850631,-500.0,0.00010372,2]
[348074292,1736293850641,-500.0,0.00010372,2]
[348074293,1736293850651,-500.0,0.00010372,2]
[348074294,1736293850661,-690.01,0.00010372,2]
[348074295,1736293850671,-500.0,0.00010372,2]
[348074296,1736293850681,-1186.64,0.00010372,2]
[348074297,1736293850691,-500.0,0.00010372,2]
[348074298,1736293850701,-1812.3,0.00010372,2]
[348074299,1736293850711,-500.0,0.00010372,2]
[348074300,1736293850720,-500.0,0.00010372,2]
[348074301,1736293850730,-500.0,0.00010372,2]
[348074302,1736293850740,-795.99,0.00010372,2]
[348074303,1736293850749,-1000.0,0.00010372,2]
[348074304,1736293850759,-500.0,0.00010372,2]
[348074305,1736293850769,-799.53,0.00010372,2]
[348074306,1736293850778,-566.68,0.00010372,2]
[348074307,1736293850787,-500.0,0.00010372,2]
[348074308,1736293850797,-500.0,0.00010372,2]
[348074309,1736293850807,-500.0,0.00010372,2]
[348074310,1736293850816,-500.0,0.00010372,2]
[348074311,1736293850826,-500.0,0.00010372,2]
[348074312,1736293850836,-1618.63,0.00010372,2]
[348074313,1736293850845,-500.0,0.00010372,2]
[348074314,1736293850855,-1474.77,0.00010404,2]
[348074315,1736293850865,-179.10452172,0.00010417,2]
[348074316,1736293850874,-397.86491952,0.00010447,2]
[348074317,1736293850885,-500.0,0.00010447,2]
[348074318,1736293850894,-500.0,0.00010447,2]
[348074319,1736293850903,-500.0,0.00010447,2]
[348074320,1736293850914,-500.0,0.00010447,2]
[348074321,1736293850923,-500.0,0.00010447,2]
[348074322,1736293850932,-1216.46,0.00010447,2]
[348074323,1736293850942,-3804.32,0.00010447,2]
[348074324,1736293850951,-500.0,0.00010447,2]
[348074325,1736293850960,-500.0,0.00010447,2]
[348074326,1736293850970,-344.30589251,0.00010447,2]
[348074327,1736293850979,-745.41,0.00010447,2]
[348074328,1736293850988,-689.56,0.00010447,2]
[348074329,1736293850998,-1125.14,0.00010447,2]
[348074330,1736293851007,-500.0,0.00010447,2]
[348074331,1736293851016,-500.0,0.00010447,2]
[348074332,1736293851025,-2044.25,0.00010447,2]
[348074333,1736293851035,-879.84,0.00010447,2]
[348074334,1736293851044,-500.0,0.00010447,2]
[348074335,1736293851054,-648.33,0.00010447,2]
[348074336,1736293851064,-1209.31,0.00010447,2]
[348074337,1736293851073,-883.01,0.00010447,2]
[348074338,1736293851082,-500.0,0.00010447,2]
[348074339,1736293851091,-501.45,0.00010448,2]
[348074340,1736293851100,-824.81,0.00010448,2]
[348074341,1736293851110,-1519.87,0.00010448,2]
[348074342,1736293851119,-207.74170204,0.00010527,2]
[348074343,1736293851128,-500.0,0.00010532,2]
[348074344,1736293851138,-500.0,0.00010532,2]
[348074345,1736293851148,-673.69,0.00010532,2]
[348074346,1736293851157,-500.0,0.00010532,2]
[348074347,1736293851166,-779.03,0.00010532,2]
[348074348,1736293851175,-1551.77,0.00010532,2]
[348074349,1736293851184,-1088.09,0.00010532,2]
[348074350,1736293851194,-620.746265,0.00010532,2]
[348074351,1736293851203,-597.759592,0.00010532,2]
[348074352,1736293851212,-2000.4,0.00010532,2]
[348074353,1736293851222,-500.0,0.00010532,2]
[348074354,1736293851231,-500.0,0.00010532,2]
[348074355,1736293851240,-500.0,0.00010532,2]
[348074356,1736293851249,-1484.85,0.00010532,2]
[348074357,1736293851258,-179.10452172,0.00010541,2]
[348074358,1736293851267,-1177.93495486,0.00010546,2]
[348074359,1736293851294,-6151.53885659,0.00010546,2]
[348074360,1736293851318,-1000.0,0.00010546,2]
[348074361,1736293851860,-473.2423505,0.00010546,2]
[348074362,1736293851872,-339.0,0.00010546,2]
[348074363,1736293851884,-1226.34999044,0.00010546,2]
[348074364,1736293852426,-4676.2927794,8.507e-05,2]
[348074365,1736293852435,-500.0,9.453e-05,2]
[348074366,1736293852446,-500.0,9.549e-05,2]
[348074367,1736293852457,-500.0,9.727e-05,2]
[348074368,1736293852466,-502.15278188,9.823e-05,2]
[348074369,1736293852476,-500.0,9.964e-05,2]
[348074370,1736293852487,-1000.0,0.00010512,2]
[348074371,1736293852498,-26865.38494761,0.00010546,2]
[348074372,1736293852508,-550.3,0.00010549,2]
[348074373,1736293852517,-1000.0,0.00010594,2]
[348074374,1736293852527,-1000.0,0.00010599,2]
[348074375,1736293852536,-178.55,0.00010634,2]
[348074376,1736293852545,-503.29,0.00010645,2]